fUST/lending_fUST_20250826
["ID","MTS","AMOUNT","RATE_DAILY","PERIOD"]
[381384157,1756174240524,-151.0,0.00039607,30]
[381384158,1756174240537,-151.0,0.00039607,30]
[381384159,1756174240547,-152.672763,0.00039607,30]
[381384160,1756174240556,-151.0,0.00039607,30]
[381384161,1756174240566,-152.077401,0.00039607,30]
[381384162,1756174240577,-151.0,0.00039607,30]
[381384163,1756174240586,-289.391831,0.00039607,30]
[381384164,1756174240598,-151.0,0.00039607,30]
[381384165,1756174240610,-151.0,0.00039607,30]
[381384166,1756174240620,-151.0,0.00039607,30]
[381384167,1756174240631,-151.0,0.00039607,15]
[381384168,1756174240640,-151.0,0.00039607,15]
[381384169,1756174240649,-152.912787,0.00039607,30]
[381384170,1756174240659,-151.0,0.00039607,30]
[381384171,1756174240668,-151.0,0.00039607,30]
[381384172,1756174240677,-151.0,0.00039607,30]
[381384173,1756174240687,-152.444789,0.00039607,30]
[381384174,1756174240697,-151.0,0.00039607,30]
[381384175,1756174240706,-266.330493,0.00039607,30]
[381384176,1756174240716,-151.924413,0.00039607,14]
[381384177,1756174240725,-151.0,0.00039607,30]
[381384178,1756174240735,-217.216141,0.00039607,30]
[381384179,1756174240744,-155.832772,0.00039607,30]
[381384180,1756174240753,-154.857188,0.00039607,30]
[381384181,1756174240762,-152.475477,0.00039607,30]
[381384182,1756174240771,-161.512589,0.00039607,30]
[381384183,1756174240780,-151.0,0.00039607,30]
[381384184,1756174240790,-158.236421,0.00039607,30]
[381384185,1756174240801,-452.0,0.00039679,120]
[381384186,1756174240811,-153.285011,0.00039774,60]
[381384187,1756174240820,-168.0,0.00039796,2]
[381384188,1756174240831,-168.0,0.00039809,2]
[381384189,1756174240840,-160.0,0.0003984,4]
[381384190,1756174240850,-168.0,0.00039897,2]
[381384191,1756174240860,-500.0,0.00039999,7]
[381384192,1756174240869,-1498.66,0.0004,7]
[381384193,1756174240881,-1998.42,0.0004,60]
[381384194,1756174240890,-153.0,0.00040086,30]
[381384195,1756174240900,-500.0,0.0004009,30]
[381384196,1756174240910,-168.0,0.00040134,2]
[381384197,1756174240920,-151.0,0.000402,17]
[381384198,1756174240930,-343.0,0.00040252,2]
[381384199,1756174240939,-22305.3584883,0.0004027,3]
[381384200,1756174240948,-219.96809641,0.0004027,3]
[381384201,1756174240957,-500.0,0.0004029,30]
[381384202,1756174240967,-151.0,0.0004039,30]
[381384203,1756174240977,-153.585396,0.0004039,30]
[381384204,1756174240986,-151.91941,0.0004039,30]
[381384205,1756174240996,-152.921191,0.0004039,30]
[381384206,1756174241011,-153.736487,0.0004039,30]
[381384208,1756174241026,-152.815395,0.0004039,30]
[381384210,1756174241036,-151.0,0.0004039,30]
[381384211,1756174241045,-15914.37,0.000404,14]
[381384212,1756174241054,-186.23,0.000404,7]
[381384213,1756174241064,-153.90498,0.000404,30]
[381384215,1756174241073,-153.285011,0.00040422,20]
[381384216,1756174241082,-173.074334,0.00040422,20]
[381384217,1756174241092,-500.0,0.0004049,30]
[381384219,1756174241101,-160.14319,0.0004049,30]
[381384221,1756174241110,-151.819621,0.0004049,30]
[381384223,1756174241120,-506.96016676,0.0004051,15]
[381384225,1756174241130,-22305.3584883,0.00040532,3]
[381384227,1756174241139,-219.96809641,0.00040532,3]
[381384229,1756174241148,-243.942292,0.00040542,30]
[381384231,1756174241157,-151.0,0.00040542,30]
[381384232,1756174241167,-151.0,0.00040542,30]
[381384233,1756174241176,-151.0,0.00040542,30]
[381384234,1756174241186,-151.0,0.00040542,30]
[381384235,1756174241197,-151.0,0.00040542,30]
[381384236,1756174241206,-151.0,0.00040542,30]
[381384237,1756174241216,-151.0,0.00040542,30]
[381384238,1756174241226,-16317.3526654,0.00040543,120]
[381384239,1756174241235,-156.15615978,0.00040558,14]
[381384240,1756174241243,-343.0,0.00040594,2]
[381384241,1756174241253,-160.0,0.000406,120]
[381384242,1756174241262,-417.15472785,0.000406,120]
[381384243,1756174241271,-12525.50245317,0.000406,120]
[381384244,1756174241281,-151.0,0.0004072,30]
[381384245,1756174241292,-151.0,0.0004072,30]
[381384246,1756174241301,-151.0,0.0004072,30]
[381384247,1756174241311,-151.0,0.0004072,30]
[381384248,1756174241320,-151.0,0.0004072,30]
[381384249,1756174241329,-151.0,0.0004072,30]
[381384250,1756174241339,-151.0,0.0004072,30]
[381384251,1756174241349,-151.0,0.0004072,30]
[381384252,1756174241359,-151.0,0.0004072,30]
[381384253,1756174241369,-151.0,0.0004072,30]
[381384254,1756174241379,-151.0,0.0004072,30]
[381384255,1756174241389,-271.499325,0.0004072,30]
[381384256,1756174241399,-151.0,0.0004072,30]
[381384257,1756174241408,-227.741809,0.0004072,30]
[381384258,1756174241417,-151.0,0.0004072,30]
[381384259,1756174241427,-151.0,0.0004072,30]
[381384260,1756174241437,-1602.82320272,0.0004072,61]
[381384261,1756174241446,-22305.3584883,0.0004072,3]
[381384262,1756174241455,-219.96809641,0.0004072,3]
[381384263,1756174241464,-1764.0,0.0004073,14]
[381384264,1756174241473,-1764.0,0.0004073,14]
[381384265,1756174241482,-1764.0,0.0004073,14]
[381384266,1756174241491,-1467.38735682,0.0004073,14]
[381384267,1756174241500,-173.45921025,0.0004079,9]
[381384268,1756174241509,-9937.81,0.000408,14]
[381384269,1756174241518,-500.0,0.00040821,7]
[381384270,1756174241529,-151.0,0.0004088,30]
[381384271,1756174241539,-151.0,0.0004088,30]
[381384272,1756174241550,-151.0,0.0004088,30]
[381384273,1756174241559,-151.0,0.0004088,30]
[381384274,1756174241569,-151.0,0.0004088,30]
[381384275,1756174241579,-151.0,0.0004088,30]
[381384276,1756174241590,-151.0,0.0004088,30]
[381384277,1756174241599,-151.0,0.0004088,30]
[381384278,1756174241608,-151.0,0.0004088,15]
[381384279,1756174241620,-160.388613,0.0004088,15]
[381384280,1756174241630,-22305.3584883,0.0004088,3]
[381384281,1756174241639,-219.96809641,0.0004088,3]
[381384282,1756174241649,-153.66128,0.0004089,30]
[381384283,1756174241658,-155.217476,0.0004089,30]
[381384284,1756174241667,-155.99209,0.0004089,30]
[381384285,1756174241677,-151.0,0.0004089,30]
[381384286,1756174241686,-151.0,0.0004089,30]
[381384287,1756174241697,-151.0,0.0004089,30]
[381384288,1756174241707,-66916.0754648,0.0004089,3]
[381384289,1756174241717,-659.90428923,0.0004089,3]
[381384290,1756174241726,-151.0,0.0004089,30]
[381384291,1756174241736,-151.0,0.0004089,30]
[381384292,1756174241746,-14164.18,0.000409,30]
[381384293,1756174241755,-1599.82,0.000409,30]
[381384294,1756174241765,-108752.09,0.000409,30]
[381384295,1756174241774,-151.0,0.000409,30]
[381384296,1756174241784,-151.0,0.000409,30]
[381384297,1756174241793,-151.0,0.000409,30]
[381384298,1756174241803,-151.0,0.000409,30]
[381384299,1756174241812,-151.0,0.000409,30]
[381384300,1756174241822,-151.0,0.000409,30]
[381384301,1756174241832,-151.0,0.000409,30]
[381384302,1756174241842,-193.279078,0.000409,30]
[381384303,1756174241852,-151.0,0.000409,15]
[381384304,1756174241861,-151.0,0.000409,30]
[381384305,1756174241871,-151.0,0.000409,30]
[381384306,1756174241883,-278.881027,0.000409,30]
[381384307,1756174241892,-151.0,0.000409,30]
[381384308,1756174241902,-245.09762,0.000409,30]
[381384309,1756174241912,-151.0,0.000409,30]
[381384310,1756174241922,-151.0,0.000409,30]
[381384311,1756174241932,-151.0,0.000409,30]
[381384312,1756174241941,-151.0,0.000409,30]
[381384313,1756174241951,-151.0,0.000409,30]
[381384314,1756174241961,-151.0,0.000409,30]
[381384315,1756174241970,-151.0,0.000409,30]
[381384316,1756174241980,-151.0,0.000409,30]
[381384317,1756174241990,-151.0,0.000409,30]
[381384318,1756174242000,-151.0,0.000409,30]
[381384319,1756174242009,-151.0,0.000409,30]
[381384320,1756174242019,-214.009121,0.000409,30]
[381384321,1756174242029,-151.0,0.000409,30]
[381384322,1756174242038,-151.0,0.000409,30]
[381384323,1756174242048,-222.066546,0.000409,30]
[381384324,1756174242057,-151.0,0.000409,30]
[381384325,1756174242066,-151.0,0.000409,30]
[381384326,1756174242076,-151.0,0.000409,30]
[381384327,1756174242086,-151.0,0.000409,30]
[381384328,1756174242095,-151.0,0.000409,30]
[381384329,1756174242105,-151.0,0.000409,30]
[381384330,1756174242115,-151.0,0.000409,30]
[381384332,1756174242124,-151.0,0.000409,30]
[381384334,1756174242135,-151.0,0.000409,30]
[381384335,1756174242143,-151.0,0.000409,30]
[381384337,1756174242153,-151.0,0.000409,30]
[381384338,1756174242162,-151.0,0.000409,30]
[381384339,1756174242171,-342.0,0.00040959,7]
[381384340,1756174242181,-153.285011,0.00040983,7]
[381384341,1756174242190,-22305.3584883,0.00040985,3]
[381384342,1756174242200,-219.96809641,0.00040985,3]
[381384343,1756174242209,-9130.88342207,0.00040995,2]
[381384344,1756174242218,-6331.28701781,0.00040995,2]
[381384346,1756174242227,-197.80930235,0.00040995,120]
[381384347,1756174242237,-1000.0,0.00040995,2]
[381384348,1756174242246,-417.15472785,0.00041,30]
[381384349,1756174242255,-800.0,0.00041033,7]
[381384350,1756174242264,-810.20471034,0.00041059,7]
[381384351,1756174242273,-800.0,0.00041061,7]
[381384352,1756174242283,-22305.3584883,0.00041063,3]
[381384354,1756174242295,-219.96809641,0.00041063,3]
[381384356,1756174242304,-500.0,0.00041073,5]
[381384358,1756174242314,-500.49904875,0.00041073,5]
[381384359,1756174242323,-500.0,0.00041073,5]
[381384360,1756174242333,-500.0,0.00041073,5]
[381384361,1756174242343,-500.0,0.00041073,5]
[381384362,1756174242352,-500.0,0.00041073,5]
[381384363,1756174242362,-500.0,0.00041073,5]
[381384364,1756174242372,-500.0,0.00041073,5]
[381384366,1756174242383,-500.0,0.00041073,5]
[381384367,1756174242393,-500.0,0.00041073,5]
[381384368,1756174242402,-500.0,0.00041073,5]
[381384369,1756174242412,-500.0,0.00041073,5]
[381384370,1756174242422,-500.0,0.00041073,5]
[381384371,1756174242432,-511.0659137,0.00041073,5]
[381384372,1756174242443,-500.0,0.00041073,5]
[381384373,1756174242452,-500.0,0.00041073,5]
[381384374,1756174242463,-501.20025594,0.00041073,5]
[381384375,1756174242478,-500.0,0.00041073,5]
[381384376,1756174242488,-500.0,0.00041073,5]
[381384377,1756174242497,-500.0,0.00041073,5]
[381384378,1756174242507,-500.0,0.00041073,5]
[381384379,1756174242516,-500.0,0.00041073,5]
[381384380,1756174242526,-529.59348212,0.00041073,5]
[381384381,1756174242538,-500.0,0.00041073,5]
[381384382,1756174242547,-500.0,0.00041073,5]
[381384383,1756174242556,-500.0,0.00041073,5]
[381384384,1756174242565,-500.0,0.00041073,5]
[381384385,1756174242575,-500.0,0.00041073,5]
[381384386,1756174242584,-500.0,0.00041073,5]
[381384387,1756174242594,-500.0,0.00041073,5]
[381384388,1756174242603,-500.0,0.00041073,2]
[381384389,1756174242614,-500.0,0.00041073,5]
[381384390,1756174242626,-500.0,0.00041073,5]
[381384391,1756174242636,-500.0,0.00041073,5]
[381384392,1756174242645,-500.0,0.00041073,5]
[381384393,1756174242654,-500.0,0.00041073,5]
[381384394,1756174242663,-500.0,0.00041073,5]
[381384395,1756174242672,-500.0,0.00041073,5]
[381384396,1756174242681,-500.0,0.00041073,5]
[381384397,1756174242691,-500.0,0.00041073,5]
[381384398,1756174242701,-648.78561667,0.00041073,5]
[381384399,1756174242710,-202.01391114,0.00041073,5]
[381384400,1756174242719,-500.0,0.00041073,5]
[381384401,1756174242729,-500.0,0.00041073,5]
[381384402,1756174242738,-500.0,0.00041073,5]
[381384403,1756174242748,-500.0,0.00041073,5]
[381384404,1756174242757,-500.0,0.00041073,5]
[381384405,1756174242766,-500.0,0.00041073,5]
[381384406,1756174242776,-500.0,0.00041073,5]
[381384407,1756174242785,-500.0,0.00041073,2]
[381384408,1756174242795,-500.0,0.00041073,5]
[381384409,1756174242804,-500.0,0.00041073,5]
[381384410,1756174242813,-610.60501173,0.00041073,5]
[381384411,1756174242822,-498.43472966,0.00041073,5]
[381384412,1756174242831,-800.0,0.00041073,7]
[381384413,1756174242840,-151.0,0.00041075,30]
[381384414,1756174242851,-151.0,0.00041075,30]
[381384415,1756174242860,-151.0,0.00041075,30]
[381384416,1756174242869,-151.0,0.00041075,15]
[381384417,1756174242879,-151.0,0.00041075,30]
[381384418,1756174242889,-151.0,0.00041075,30]
[381384419,1756174242898,-439.93619282,0.00041075,3]
[381384420,1756174242908,-7598.67535602,0.00041085,30]
[381384421,1756174242918,-151.0,0.00041085,30]
[381384422,1756174242928,-151.0,0.00041085,30]
[381384423,1756174242937,-275.66308,0.00041085,30]
[381384424,1756174242946,-151.0,0.00041085,30]
[381384425,1756174242955,-151.0,0.00041085,30]
[381384426,1756174242964,-151.0,0.00041085,30]
[381384427,1756174242974,-151.0,0.00041085,30]
[381384428,1756174242983,-151.0,0.00041085,30]
[381384429,1756174242993,-151.0,0.00041085,30]
[381384430,1756174243002,-151.0,0.00041085,30]
[381384431,1756174243011,-151.0,0.00041085,30]
[381384432,1756174243020,-151.0,0.00041085,30]
[381384433,1756174243030,-151.0,0.00041085,30]
[381384434,1756174243039,-151.0,0.00041085,30]
[381384435,1756174243048,-151.0,0.00041085,30]
[381384436,1756174243058,-151.0,0.00041085,30]
[381384437,1756174243069,-213.063634,0.00041085,30]
[381384438,1756174243080,-160.0,0.00041085,3]
[381384439,1756174243090,-1539.77667487,0.00041085,3]
[381384440,1756174243100,-500.0,0.00041095,2]
[381384441,1756174243109,-522.58311693,0.00041095,2]
[381384442,1756174243119,-480.0,0.00041095,30]
[381384443,1756174243128,-480.43346087,0.00041095,30]
[381384444,1756174243140,-480.90203111,0.00041095,30]
[381384445,1756174243149,-480.0,0.00041095,30]
[381384446,1756174243159,-480.0,0.00041095,30]
[381384447,1756174243168,-480.0,0.00041095,30]
[381384448,1756174243177,-480.0,0.00041095,30]
[381384449,1756174243187,-481.49450717,0.00041095,30]
[381384450,1756174243196,-902.06,0.00041095,30]
[381384451,1756174243206,-481.35008951,0.00041095,30]
[381384452,1756174243216,-480.0,0.00041095,30]
[381384453,1756174243225,-480.0,0.00041095,30]
[381384454,1756174243235,-480.0,0.00041095,30]
[381384455,1756174243245,-480.0,0.00041095,30]
[381384456,1756174243254,-1496.05,0.00041095,30]
[381384457,1756174243263,-480.0,0.00041095,30]
[381384458,1756174243272,-480.0,0.00041095,30]
[381384459,1756174243282,-480.0,0.00041095,30]
[381384461,1756174243291,-549.71,0.00041095,30]
[381384463,1756174243300,-548.83,0.00041095,30]
[381384465,1756174243309,-480.0,0.00041095,30]
[381384467,1756174243319,-480.91036355,0.00041095,30]
[381384469,1756174243328,-2198.74,0.00041095,30]
[381384471,1756174243337,-1052.22,0.00041095,30]
[381384473,1756174243347,-480.67387012,0.00041095,30]
[381384475,1756174243356,-480.0,0.00041095,30]
[381384477,1756174243366,-151.0,0.00041095,7]
[381384479,1756174243375,-499.82,0.00041095,30]
[381384481,1756174243385,-480.47444087,0.00041095,30]
[381384483,1756174243395,-151.59934997,0.00041095,7]
[381384485,1756174243404,-151.0,0.00041095,7]
[381384487,1756174243414,-151.0,0.00041095,7]
[381384489,1756174243424,-203.86155924,0.00041095,7]
[381384490,1756174243434,-480.0,0.00041095,30]
[381384491,1756174243444,-151.78466304,0.00041095,7]
[381384492,1756174243455,-480.0,0.00041095,30]
[381384494,1756174243466,-151.9764294,0.00041095,7]
[381384496,1756174243475,-151.66765732,0.00041095,7]
[381384498,1756174243485,-151.90793596,0.00041095,7]
[381384500,1756174243494,-480.0,0.00041095,30]
[381384501,1756174243503,-151.28914424,0.00041095,7]
[381384503,1756174243513,-480.0,0.00041095,30]
[381384505,1756174243522,-679.64,0.00041095,30]
[381384507,1756174243533,-480.0,0.00041095,30]
[381384508,1756174243545,-722.29,0.00041095,30]
[381384509,1756174243555,-480.0,0.00041095,30]
[381384510,1756174243564,-480.0,0.00041095,30]
[381384511,1756174243574,-480.0,0.00041095,30]
[381384512,1756174243584,-494.56,0.00041095,30]
[381384513,1756174243594,-1046.78,0.00041095,30]
[381384514,1756174243603,-480.0,0.00041095,30]
[381384515,1756174243614,-480.0,0.00041095,30]
[381384516,1756174243626,-480.0,0.00041095,30]
[381384517,1756174243636,-480.0,0.00041095,30]
[381384518,1756174243646,-480.0,0.00041095,30]
[381384519,1756174243655,-481.03984002,0.00041095,30]
[381384520,1756174243665,-480.0,0.00041095,30]
[381384523,1756174243859,-480.0,0.00041095,30]
[381384524,1756174243869,-560.72636246,0.00041095,30]
[381384525,1756174243879,-480.0,0.00041095,30]
[381384526,1756174243888,-480.0,0.00041095,30]
[381384527,1756174243898,-480.0,0.00041095,30]
[381384528,1756174243907,-480.0,0.00041095,30]
[381384529,1756174243918,-480.0,0.00041095,30]
[381384530,1756174243929,-481.33080816,0.00041095,30]
[381384531,1756174243938,-480.0,0.00041095,30]
[381384532,1756174243948,-480.0,0.00041095,30]
[381384533,1756174243957,-480.0,0.00041095,30]
[381384534,1756174243967,-480.0,0.00041095,30]
[381384535,1756174243977,-480.0,0.00041095,30]
[381384536,1756174243987,-736.14,0.00041095,30]
[381384537,1756174243997,-480.0,0.00041095,30]
[381384538,1756174244006,-480.0,0.00041095,30]
[381384539,1756174244016,-480.0,0.00041095,30]
[381384540,1756174244025,-480.0,0.00041095,30]
[381384541,1756174244036,-533.33,0.00041095,20]
[381384542,1756174244046,-480.0,0.00041095,30]
[381384543,1756174244055,-1312.16,0.00041095,30]
[381384544,1756174244064,-894.2,0.00041095,30]
[381384545,1756174244074,-480.0,0.00041095,30]
[381384546,1756174244083,-480.0,0.00041095,30]
[381384547,1756174244094,-480.0,0.00041095,30]
[381384548,1756174244104,-474.86933276,0.00041095,30]
[381384549,1756174244114,-480.0,0.00041095,30]
[381384550,1756174244124,-480.81596777,0.00041095,30]
[381384551,1756174244135,-480.0,0.00041095,30]
[381384552,1756174244147,-480.0,0.00041095,30]
[381384553,1756174244156,-480.0,0.00041095,30]
[381384554,1756174244166,-480.0,0.00041095,30]
[381384555,1756174244175,-480.0,0.00041095,30]
[381384556,1756174244185,-481.46651135,0.00041095,30]
[381384557,1756174244193,-803.83,0.00041095,30]
[381384558,1756174244203,-480.0,0.00041095,30]
[381384559,1756174244212,-480.0,0.00041095,30]
[381384560,1756174244222,-480.0,0.00041095,30]
[381384561,1756174244232,-480.0,0.00041095,30]
[381384562,1756174244242,-480.0,0.00041095,30]
[381384563,1756174244251,-784.25,0.00041095,30]
[381384564,1756174244261,-481.04255517,0.00041095,30]
[381384565,1756174244271,-480.0,0.00041095,30]
[381384566,1756174244281,-480.0,0.00041095,30]
[381384567,1756174244291,-216.55,0.00041095,30]
[381384568,1756174244300,-480.0,0.00041095,30]
[381384569,1756174244311,-779.67,0.00041095,30]
[381384570,1756174244321,-2178.64,0.00041095,30]
[381384571,1756174244331,-1757.82,0.00041095,30]
[381384572,1756174244340,-480.66987588,0.00041095,30]
[381384573,1756174244350,-545.37,0.00041095,7]
[381384574,1756174244359,-613.86,0.00041095,30]
[381384575,1756174244369,-591.97,0.00041095,30]
[381384576,1756174244378,-480.0,0.00041095,30]
[381384577,1756174244389,-480.0,0.00041095,30]
[381384578,1756174244399,-772.68,0.00041095,30]
[381384579,1756174244408,-669.96,0.00041095,30]
[381384580,1756174244418,-480.0,0.00041095,30]
[381384581,1756174244427,-480.0,0.00041095,30]
[381384582,1756174244437,-480.0,0.00041095,30]
[381384583,1756174244446,-684.04,0.00041095,30]
[381384584,1756174244455,-480.0,0.00041095,30]
[381384585,1756174244465,-480.0,0.00041095,30]
[381384586,1756174244474,-480.0,0.00041095,30]
[381384587,1756174244484,-480.0,0.00041095,30]
[381384588,1756174244494,-480.93209115,0.00041095,30]
[381384589,1756174244504,-480.0,0.00041095,30]
[381384590,1756174244513,-684.92,0.00041095,30]
[381384591,1756174244522,-482.20010908,0.00041095,30]
[381384592,1756174244536,-579.14,0.00041095,30]
[381384593,1756174244545,-480.0,0.00041095,30]
[381384594,1756174244555,-480.0,0.00041095,30]
[381384595,1756174244564,-480.0,0.00041095,30]
[381384596,1756174244574,-519.6,0.00041095,30]
[381384597,1756174244583,-480.0,0.00041095,30]
[381384598,1756174244593,-480.0,0.00041095,30]
[381384599,1756174244602,-480.0,0.00041095,30]
[381384600,1756174244614,-1004.95,0.00041095,30]
[381384601,1756174244624,-480.0,0.00041095,30]
[381384602,1756174244634,-460.29959888,0.00041095,30]
[381384603,1756174244643,-480.0,0.00041095,30]
[381384604,1756174244652,-480.0,0.00041095,30]
[381384605,1756174244662,-363.06760312,0.00041095,30]
[381384606,1756174244671,-480.95099447,0.00041095,30]
[381384607,1756174244680,-310.71207266,0.00041095,30]
[381384608,1756174244690,-480.0,0.00041095,30]
[381384609,1756174244700,-480.0,0.00041095,5]
[381384610,1756174244711,-480.0,0.00041095,30]
[381384611,1756174244720,-500.0,0.00041095,120]
[381384612,1756174244730,-642.04,0.00041095,30]
[381384613,1756174244739,-480.0,0.00041095,30]
[381384614,1756174244749,-480.0,0.00041095,30]
[381384615,1756174244758,-480.86080027,0.00041095,30]
[381384616,1756174244769,-774.93,0.00041095,30]
[381384617,1756174244779,-481.58930038,0.00041095,30]
[381384618,1756174244789,-480.0,0.00041095,30]
[381384619,1756174244799,-480.0,0.00041095,30]
[381384620,1756174244808,-480.0,0.00041095,30]
[381384621,1756174244818,-480.0,0.00041095,30]
[381384622,1756174244827,-2173.52,0.00041095,30]
[381384623,1756174244837,-480.0,0.00041095,30]
[381384624,1756174244846,-480.0,0.00041095,30]
[381384625,1756174244855,-1521.49,0.00041095,30]
[381384626,1756174244865,-480.0,0.00041095,30]
[381384627,1756174244874,-480.0,0.00041095,30]
[381384628,1756174244885,-691.48,0.00041095,30]
[381384629,1756174244894,-1898.6,0.00041095,30]
[381384630,1756174244904,-480.0,0.00041095,30]
[381384631,1756174244914,-568.17,0.00041095,30]
[381384632,1756174244924,-485.84,0.00041095,30]
[381384633,1756174244933,-151.0,0.00041095,7]
[381384634,1756174244943,-151.56163374,0.00041095,7]
[381384635,1756174244952,-797.78,0.00041095,30]
[381384636,1756174244962,-480.83058707,0.00041095,30]
[381384637,1756174244971,-480.0,0.00041095,30]
[381384638,1756174244980,-719.04,0.00041095,30]
[381384639,1756174244990,-501.14,0.00041095,30]
[381384640,1756174244999,-480.0,0.00041095,30]
[381384641,1756174245010,-418.15553721,0.00041095,30]
[381384642,1756174245020,-480.0,0.00041095,30]
[381384643,1756174245029,-733.26,0.00041095,30]
[381384644,1756174245041,-151.0,0.00041095,30]
[381384645,1756174245052,-151.0,0.00041095,30]
[381384646,1756174245062,-480.0,0.00041095,30]
[381384647,1756174245072,-480.0,0.00041095,30]
[381384648,1756174245082,-628.8,0.00041095,30]
[381384649,1756174245091,-480.0,0.00041095,30]
[381384650,1756174245101,-480.0,0.00041095,30]
[381384651,1756174245111,-513.98,0.00041095,30]
[381384652,1756174245121,-480.0,0.00041095,30]
[381384653,1756174245132,-480.0,0.00041095,30]
[381384654,1756174245142,-2868.57,0.00041095,30]
[381384655,1756174245152,-719.89,0.00041095,30]
[381384656,1756174245162,-514.14,0.00041095,30]
[381384657,1756174245172,-480.0,0.00041095,30]
[381384658,1756174245182,-480.0,0.00041095,30]
[381384659,1756174245193,-480.0,0.00041095,30]
[381384660,1756174245202,-480.0,0.00041095,30]
[381384661,1756174245212,-217.093733,0.00041095,30]
[381384662,1756174245221,-481.37022759,0.00041095,30]
[381384663,1756174245231,-480.0,0.00041095,30]
[381384664,1756174245241,-1716.47,0.00041095,30]
[381384665,1756174245251,-480.0,0.00041095,30]
[381384666,1756174245260,-955.56,0.00041095,30]
[381384667,1756174245270,-1559.68,0.00041095,30]
[381384668,1756174245280,-480.0,0.00041095,30]
[381384669,1756174245290,-540.24,0.00041095,30]
[381384670,1756174245300,-480.0,0.00041095,30]
[381384671,1756174245310,-480.0,0.00041095,30]
[381384672,1756174245320,-480.0,0.00041095,30]
[381384673,1756174245330,-480.0,0.00041095,30]
[381384674,1756174245339,-506.7,0.00041095,30]
[381384675,1756174245349,-480.0,0.00041095,30]
[381384676,1756174245358,-151.0,0.00041095,30]
[381384677,1756174245368,-480.0,0.00041095,30]
[381384678,1756174245378,-480.0,0.00041095,30]
[381384679,1756174245389,-468.90915795,0.00041095,30]
[381384680,1756174245398,-151.0,0.00041095,30]
[381384681,1756174245407,-745.65,0.00041095,30]
[381384682,1756174245417,-480.0,0.00041095,30]
[381384683,1756174245426,-480.0,0.00041095,30]
[381384684,1756174245436,-151.0,0.00041095,30]
[381384685,1756174245445,-2104.85,0.00041095,30]
[381384686,1756174245454,-533.96,0.00041095,30]
[381384687,1756174245463,-480.0,0.00041095,30]
[381384688,1756174245472,-621.52,0.00041095,30]
[381384689,1756174245482,-705.64,0.00041095,30]
[381384690,1756174245491,-2491.9,0.00041095,30]
[381384691,1756174245501,-480.78038555,0.00041095,30]
[381384692,1756174245510,-659.53,0.00041095,14]
[381384693,1756174245520,-480.0,0.00041095,30]
[381384694,1756174245530,-930.66,0.00041095,30]
[381384695,1756174245541,-787.91,0.00041095,30]
[381384696,1756174245552,-480.0,0.00041095,30]
[381384697,1756174245561,-480.0,0.00041095,30]
[381384698,1756174245571,-970.79,0.00041095,30]